[Event "Late Titled Tuesday Blitz February 8 2022"]
[White "Stankovic, Ivan G"]
[Black "Karttunen, Mika"]
[WhiteFideId "902837"]
[BlackFideId "502081"]
[WhiteElo "2195"]
[BlackElo "2343"]
[Result "0-1"]
[Round "03"]
[TimeControl "180+1"]
[Date "2022.02.09"]
[WhiteClock "0:00:08"]
[BlackClock "0:00:16"]

1. e4 {[%clk 0:03:00]}  e5 {[%clk 0:02:58]} 2. d4 {[%clk 0:03:00]}  exd4 {[%clk 0:02:58]} 3. Qxd4 {[%clk 0:03:01]}  Nc6 {[%clk 0:02:54]} 4. Qe3 {[%clk 0:03:02]}  Nf6 {[%clk 0:02:45]} 5. Nc3 {[%clk 0:03:02]}  Bb4 {[%clk 0:02:35]} 6. Bd2 {[%clk 0:03:02]}  O-O {[%clk 0:02:33]} 7. O-O-O {[%clk 0:03:01]}  Re8 {[%clk 0:02:24]} 8. f3 {[%clk 0:02:57]}  a6 {[%clk 0:01:53]} 9. Qf2 {[%clk 0:02:53]}  b5 {[%clk 0:01:49]} 10. g4 {[%clk 0:02:50]}  Bb7 {[%clk 0:01:46]} 11. h4 {[%clk 0:02:50]}  Ne5 {[%clk 0:01:34]} 12. h5 {[%clk 0:02:44]}  Nexg4 {[%clk 0:01:20]} 13. fxg4 {[%clk 0:02:44]}  Bxc3 {[%clk 0:01:21]} 14. Bxc3 {[%clk 0:02:06]}  Nxe4 {[%clk 0:01:21]} 15. Qg2 {[%clk 0:02:06]}  Nxc3 {[%clk 0:01:21]} 16. Qxb7 {[%clk 0:02:05]}  Nxd1 {[%clk 0:01:21]} 17. Kxd1 {[%clk 0:02:06]}  c6 {[%clk 0:01:04]} 18. Bd3 {[%clk 0:01:59]}  Qf6 {[%clk 0:00:49]} 19. Qxd7 {[%clk 0:01:37]}  Qxb2 {[%clk 0:00:49]} 20. Ne2 {[%clk 0:01:37]}  Re5 {[%clk 0:00:23]} 21. h6 {[%clk 0:01:03]}  g6 {[%clk 0:00:23]} 22. Qxc6 {[%clk 0:01:03]}  Rd8 {[%clk 0:00:20]} 23. Nc1 {[%clk 0:00:54]}  Qd4 {[%clk 0:00:15]} 24. Qf3 {[%clk 0:00:27]}  Re3 {[%clk 0:00:15]} 25. Qg2 {[%clk 0:00:21]}  Rde8 {[%clk 0:00:15]} 26. Rf1 {[%clk 0:00:19]}  Qe5 {[%clk 0:00:14]} 27. Qf2 {[%clk 0:00:18]}  Re7 {[%clk 0:00:14]} 28. Qf6 {[%clk 0:00:11]}  Re1+ {[%clk 0:00:13]} 29. Kd2 {[%clk 0:00:11]}  Qe3+ {[%clk 0:00:10]} 30. Kc3 {[%clk 0:00:11]}  Rc7+ {[%clk 0:00:09]} 31. Kb3 {[%clk 0:00:10]}  Qe6+ {[%clk 0:00:09]} 32. Qxe6 {[%clk 0:00:10]}  Rxe6 {[%clk 0:00:09]} 33. Rf4 {[%clk 0:00:10]}  Kf8 {[%clk 0:00:09]} 34. Ne2 {[%clk 0:00:10]}  Ke7 {[%clk 0:00:09]} 35. Nd4 {[%clk 0:00:10]}  Rd6 {[%clk 0:00:10]} 36. g5 {[%clk 0:00:10]}  Rc5 {[%clk 0:00:10]} 37. Re4+ {[%clk 0:00:11]}  Kd8 {[%clk 0:00:09]} 38. Nf3 {[%clk 0:00:11]}  Rf5 {[%clk 0:00:09]} 39. Nd4 {[%clk 0:00:09]}  Rxg5 {[%clk 0:00:09]} 40. a4 {[%clk 0:00:08]}  Rgd5 {[%clk 0:00:09]} 41. Nf3 {[%clk 0:00:07]}  bxa4+ {[%clk 0:00:09]} 42. Kxa4 {[%clk 0:00:08]}  a5 {[%clk 0:00:09]} 43. Kb3 {[%clk 0:00:08]}  f5 {[%clk 0:00:10]} 44. Rc4 {[%clk 0:00:07]}  f4 {[%clk 0:00:09]} 45. Rxf4 {[%clk 0:00:07]}  Ke7 {[%clk 0:00:10]} 46. Re4+ {[%clk 0:00:07]}  Kf6 {[%clk 0:00:10]} 47. Kc3 {[%clk 0:00:06]}  Rc6+ {[%clk 0:00:10]} 48. Kd2 {[%clk 0:00:06]}  Rdd6 {[%clk 0:00:09]} 49. Ke3 {[%clk 0:00:06]}  Re6 {[%clk 0:00:09]} 50. Nd4 {[%clk 0:00:07]}  Rxe4+ {[%clk 0:00:09]} 51. Kxe4 {[%clk 0:00:07]}  Rc8 {[%clk 0:00:09]} 52. Nf3 {[%clk 0:00:07]}  Re8+ {[%clk 0:00:09]} 53. Kd5 {[%clk 0:00:07]}  Re3 {[%clk 0:00:09]} 54. Nd4 {[%clk 0:00:07]}  Kg5 {[%clk 0:00:09]} 55. Ne6+ {[%clk 0:00:06]}  Kxh6 {[%clk 0:00:10]} 56. Nf8 {[%clk 0:00:07]}  Kg7 {[%clk 0:00:09]} 57. Ne6+ {[%clk 0:00:06]}  Kf6 {[%clk 0:00:10]} 58. Nf4 {[%clk 0:00:07]}  h5 {[%clk 0:00:10]} 59. Kd4 {[%clk 0:00:07]}  Re8 {[%clk 0:00:10]} 60. Nxg6 {[%clk 0:00:08]}  Rd8+ {[%clk 0:00:10]} 61. Ke3 {[%clk 0:00:07]}  Rxd3+ {[%clk 0:00:11]} 62. Kxd3 {[%clk 0:00:07]}  Kxg6 {[%clk 0:00:12]} 63. c4 {[%clk 0:00:07]}  Kf6 {[%clk 0:00:12]} 64. Kd4 {[%clk 0:00:07]}  Ke6 {[%clk 0:00:13]} 65. Kc5 {[%clk 0:00:08]}  Kd7 {[%clk 0:00:13]} 66. Kb6 {[%clk 0:00:08]}  a4 {[%clk 0:00:13]} 67. Kb7 {[%clk 0:00:06]}  Kd6 {[%clk 0:00:13]} 68. Kb6 {[%clk 0:00:07]}  a3 {[%clk 0:00:13]} 69. c5+ {[%clk 0:00:07]}  Kd5 {[%clk 0:00:14]} 70. c6 {[%clk 0:00:07]}  a2 {[%clk 0:00:15]} 71. c7 {[%clk 0:00:08]}  a1=Q {[%clk 0:00:15]} 72. c8=Q {[%clk 0:00:09]}  Qb2+ {[%clk 0:00:15]} 73. Ka7 {[%clk 0:00:09]}  Qa3+ {[%clk 0:00:15]} 74. Kb8 {[%clk 0:00:09]}  Qd6+ {[%clk 0:00:15]} 75. Ka7 {[%clk 0:00:09]}  Qc5+ {[%clk 0:00:15]} 76. Qxc5+ {[%clk 0:00:08]}  Kxc5 {[%clk 0:00:16]} 0-1


[Site "https://www.chess.com"]

[Event "Late Titled Tuesday Blitz February 8 2022"]
[White "Taichman, Ori"]
[Black "Martinez Alcantara, Jose Eduardo"]
[WhiteFideId "2804069"]
[BlackFideId "3805662"]
[WhiteElo "2227"]
[BlackElo "2690"]
[Result "0-1"]
[Round "03"]
[TimeControl "180+1"]
[Date "2022.02.08"]
[WhiteClock "0:00:04"]
[BlackClock "0:00:48"]

1. e4 {[%clk 0:03:00]}  c5 {[%clk 0:02:59]} 2. b3 {[%clk 0:02:56]}  b6 {[%clk 0:02:55]} 3. Bb2 {[%clk 0:02:54]}  Bb7 {[%clk 0:02:56]} 4. Nc3 {[%clk 0:02:52]}  e6 {[%clk 0:02:53]} 5. d4 {[%clk 0:02:25]}  cxd4 {[%clk 0:02:54]} 6. Qxd4 {[%clk 0:02:24]}  d6 {[%clk 0:02:54]} 7. O-O-O {[%clk 0:02:23]}  a6 {[%clk 0:02:51]} 8. f4 {[%clk 0:02:07]}  Nd7 {[%clk 0:02:43]} 9. Nf3 {[%clk 0:02:05]}  Qc7 {[%clk 0:02:41]} 10. f5 {[%clk 0:01:44]}  e5 {[%clk 0:02:29]} 11. Qe3 {[%clk 0:01:44]}  Ngf6 {[%clk 0:02:29]} 12. h3 {[%clk 0:01:36]}  h5 {[%clk 0:02:26]} 13. Rg1 {[%clk 0:01:32]}  Qc5 {[%clk 0:02:19]} 14. Qe1 {[%clk 0:01:11]}  Rc8 {[%clk 0:02:13]} 15. Bd3 {[%clk 0:01:05]}  b5 {[%clk 0:02:01]} 16. g4 {[%clk 0:01:04]}  hxg4 {[%clk 0:02:01]} 17. hxg4 {[%clk 0:01:05]}  Nb6 {[%clk 0:01:46]} 18. g5 {[%clk 0:00:51]}  Nfd7 {[%clk 0:01:46]} 19. Rh1 {[%clk 0:00:36]}  Rxh1 {[%clk 0:01:44]} 20. Qxh1 {[%clk 0:00:36]}  b4 {[%clk 0:01:43]} 21. Ne2 {[%clk 0:00:13]}  Qe3+ {[%clk 0:01:30]} 22. Kb1 {[%clk 0:00:14]}  Bxe4 {[%clk 0:01:30]} 23. Bxe4 {[%clk 0:00:11]}  Qxe4 {[%clk 0:01:31]} 24. Rd2 {[%clk 0:00:10]}  Qxf5 {[%clk 0:01:27]} 25. Ng3 {[%clk 0:00:09]}  Qf4 {[%clk 0:01:25]} 26. Nh5 {[%clk 0:00:09]}  Qe4 {[%clk 0:01:21]} 27. Qf1 {[%clk 0:00:07]}  Qg4 {[%clk 0:01:12]} 28. Qxa6 {[%clk 0:00:04]}  Qxf3 {[%clk 0:01:09]} 29. a4 {[%clk 0:00:03]}  bxa3 {[%clk 0:01:09]} 30. Bxa3 {[%clk 0:00:03]}  Qxh5 {[%clk 0:01:07]} 31. Bxd6 {[%clk 0:00:03]}  Bxd6 {[%clk 0:01:08]} 32. Rxd6 {[%clk 0:00:04]}  Qxg5 {[%clk 0:01:03]} 33. Rxb6 {[%clk 0:00:04]}  Qg1+ {[%clk 0:01:04]} 34. Ka2 {[%clk 0:00:02]}  Rxc2+ {[%clk 0:01:03]} 35. Ka3 {[%clk 0:00:02]}  Qa1+ {[%clk 0:01:04]} 36. Kb4 {[%clk 0:00:03]}  Qc3+ {[%clk 0:00:59]} 37. Ka3 {[%clk 0:00:02]}  Qa1+ {[%clk 0:00:48]} 38. Kb4 {[%clk 0:00:02]}  Qd4+ {[%clk 0:00:48]} 39. Ka3 {[%clk 0:00:02]}  Qxb6 {[%clk 0:00:47]} 40. Qa8+ {[%clk 0:00:02]}  Ke7 {[%clk 0:00:47]} 41. b4 {[%clk 0:00:02]}  Qe3+ {[%clk 0:00:46]} 42. Ka4 {[%clk 0:00:03]}  Ra2+ {[%clk 0:00:47]} 43. Kb5 {[%clk 0:00:03]}  Qb6+ {[%clk 0:00:47]} 44. Kc4 {[%clk 0:00:04]}  Qd4+ {[%clk 0:00:48]} 45. Kb5 {[%clk 0:00:04]}  Qd3+ {[%clk 0:00:47]} 46. Kc6 {[%clk 0:00:04]}  Rc2+ {[%clk 0:00:46]} 47. Kb7 {[%clk 0:00:04]}  Qb5+ {[%clk 0:00:47]} 48. Ka7 {[%clk 0:00:04]}  Qb6# {[%clk 0:00:48]} 0-1


[Site "https://www.chess.com"]

[Event "Late Titled Tuesday Blitz February 8 2022"]
[White "Timofeev, Artyom"]
[Black "Punin, Andrii"]
[WhiteFideId "4140419"]
[BlackFideId "14112639"]
[WhiteElo "2583"]
[BlackElo "2357"]
[Result "1-0"]
[Round "03"]
[TimeControl "180+1"]
[Date "2022.02.08"]
[WhiteClock "0:00:35"]
[BlackClock "0:00:26"]

1. d4 {[%clk 0:03:00]}  Nf6 {[%clk 0:02:59]} 2. Nf3 {[%clk 0:03:00]}  d5 {[%clk 0:02:59]} 3. c4 {[%clk 0:03:00]}  e6 {[%clk 0:02:59]} 4. Nc3 {[%clk 0:02:59]}  Bb4 {[%clk 0:02:59]} 5. e3 {[%clk 0:02:58]}  O-O {[%clk 0:02:59]} 6. Bd3 {[%clk 0:02:56]}  dxc4 {[%clk 0:02:57]} 7. Bxc4 {[%clk 0:02:56]}  c5 {[%clk 0:02:58]} 8. O-O {[%clk 0:02:56]}  cxd4 {[%clk 0:02:57]} 9. exd4 {[%clk 0:02:56]}  b6 {[%clk 0:02:57]} 10. Qe2 {[%clk 0:02:56]}  Bb7 {[%clk 0:02:53]} 11. Rd1 {[%clk 0:02:55]}  h6 {[%clk 0:02:52]} 12. Ne5 {[%clk 0:02:48]}  Nc6 {[%clk 0:02:07]} 13. Be3 {[%clk 0:02:38]}  Ne7 {[%clk 0:01:56]} 14. Rac1 {[%clk 0:02:23]}  Ned5 {[%clk 0:01:55]} 15. Ba6 {[%clk 0:01:57]}  Bxa6 {[%clk 0:01:43]} 16. Qxa6 {[%clk 0:01:57]}  Bxc3 {[%clk 0:01:43]} 17. bxc3 {[%clk 0:01:57]}  Qc8 {[%clk 0:01:32]} 18. Qd3 {[%clk 0:01:51]}  Nd7 {[%clk 0:01:26]} 19. Nf3 {[%clk 0:01:48]}  Qb7 {[%clk 0:01:16]} 20. c4 {[%clk 0:01:47]}  N5f6 {[%clk 0:01:15]} 21. h3 {[%clk 0:01:45]}  Rac8 {[%clk 0:01:14]} 22. Bf4 {[%clk 0:01:30]}  Rfe8 {[%clk 0:01:14]} 23. Bd6 {[%clk 0:01:28]}  Ne4 {[%clk 0:01:03]} 24. Ba3 {[%clk 0:01:26]}  Nef6 {[%clk 0:01:01]} 25. Bb2 {[%clk 0:01:14]}  a6 {[%clk 0:00:58]} 26. a4 {[%clk 0:01:10]}  b5 {[%clk 0:00:49]} 27. cxb5 {[%clk 0:00:56]}  axb5 {[%clk 0:00:50]} 28. axb5 {[%clk 0:00:46]}  Rb8 {[%clk 0:00:49]} 29. d5 {[%clk 0:00:46]}  Qxb5 {[%clk 0:00:43]} 30. Qxb5 {[%clk 0:00:43]}  Rxb5 {[%clk 0:00:44]} 31. dxe6 {[%clk 0:00:42]}  Rxe6 {[%clk 0:00:38]} 32. Bxf6 {[%clk 0:00:41]}  Nxf6 {[%clk 0:00:30]} 33. Nd4 {[%clk 0:00:40]}  Reb6 {[%clk 0:00:28]} 34. Nxb5 {[%clk 0:00:40]}  Rxb5 {[%clk 0:00:29]} 35. Rc2 {[%clk 0:00:39]}  Kh7 {[%clk 0:00:27]} 36. Rd3 {[%clk 0:00:37]}  h5 {[%clk 0:00:26]} 37. Rc7 {[%clk 0:00:35]} 1-0


[Site "https://www.chess.com"]

[Event "Late Titled Tuesday Blitz February 8 2022"]
[White "Tregubov, Pavel V."]
[Black "Urbina Perez, Juan Antonio"]
[WhiteFideId "4115341"]
[BlackFideId "2217368"]
[WhiteElo "2341"]
[BlackElo "2192"]
[Result "1-0"]
[Round "03"]
[TimeControl "180+1"]
[Date "2022.02.09"]
[WhiteClock "0:00:30"]
[BlackClock "0:00:05"]

1. e4 {[%clk 0:03:00]}  e5 {[%clk 0:02:56]} 2. Nf3 {[%clk 0:03:00]}  Nc6 {[%clk 0:02:56]} 3. Bb5 {[%clk 0:03:00]}  Nf6 {[%clk 0:02:55]} 4. d4 {[%clk 0:03:00]}  exd4 {[%clk 0:02:50]} 5. O-O {[%clk 0:02:59]}  Be7 {[%clk 0:02:31]} 6. e5 {[%clk 0:02:59]}  Nd5 {[%clk 0:02:30]} 7. Nxd4 {[%clk 0:02:59]}  Nxd4 {[%clk 0:02:29]} 8. Qxd4 {[%clk 0:02:58]}  c6 {[%clk 0:02:29]} 9. Bc4 {[%clk 0:02:54]}  Nb6 {[%clk 0:02:25]} 10. Bd3 {[%clk 0:02:49]}  d5 {[%clk 0:02:07]} 11. exd6 {[%clk 0:02:47]}  Bf6 {[%clk 0:02:07]} 12. Qb4 {[%clk 0:02:14]}  O-O {[%clk 0:02:00]} 13. Nc3 {[%clk 0:02:09]}  a5 {[%clk 0:01:50]} 14. Qc5 {[%clk 0:02:08]}  Nd7 {[%clk 0:01:46]} 15. Qh5 {[%clk 0:02:08]}  g6 {[%clk 0:01:45]} 16. Qd1 {[%clk 0:02:00]}  Nc5 {[%clk 0:01:35]} 17. Bh6 {[%clk 0:01:55]}  Re8 {[%clk 0:01:33]} 18. Be2 {[%clk 0:01:42]}  Bf5 {[%clk 0:01:13]} 19. Bf3 {[%clk 0:01:32]}  Qd7 {[%clk 0:01:03]} 20. Qd2 {[%clk 0:01:27]}  Rad8 {[%clk 0:01:00]} 21. Rad1 {[%clk 0:01:26]}  Ne4 {[%clk 0:00:56]} 22. Nxe4 {[%clk 0:01:24]}  Bxe4 {[%clk 0:00:57]} 23. Bxe4 {[%clk 0:01:23]}  Rxe4 {[%clk 0:00:58]} 24. Rfe1 {[%clk 0:01:20]}  Rxe1+ {[%clk 0:00:45]} 25. Rxe1 {[%clk 0:01:18]}  Bg7 {[%clk 0:00:39]} 26. Bg5 {[%clk 0:01:08]}  Qxd6 {[%clk 0:00:23]} 27. Qxd6 {[%clk 0:01:06]}  Rxd6 {[%clk 0:00:23]} 28. Re8+ {[%clk 0:01:07]}  Bf8 {[%clk 0:00:24]} 29. Kf1 {[%clk 0:01:05]}  Kg7 {[%clk 0:00:23]} 30. Rb8 {[%clk 0:00:59]}  Rd7 {[%clk 0:00:23]} 31. Ke2 {[%clk 0:00:58]}  Be7 {[%clk 0:00:23]} 32. Bd2 {[%clk 0:00:56]}  Bf6 {[%clk 0:00:23]} 33. b3 {[%clk 0:00:55]}  a4 {[%clk 0:00:22]} 34. bxa4 {[%clk 0:00:54]}  Re7+ {[%clk 0:00:19]} 35. Kf3 {[%clk 0:00:50]}  Rd7 {[%clk 0:00:20]} 36. Be3 {[%clk 0:00:49]}  Be5 {[%clk 0:00:19]} 37. Re8 {[%clk 0:00:48]}  Bf6 {[%clk 0:00:19]} 38. Rb8 {[%clk 0:00:43]}  Re7 {[%clk 0:00:17]} 39. a5 {[%clk 0:00:41]}  Rd7 {[%clk 0:00:18]} 40. Ra8 {[%clk 0:00:41]}  Rd5 {[%clk 0:00:17]} 41. a6 {[%clk 0:00:41]}  bxa6 {[%clk 0:00:17]} 42. Rxa6 {[%clk 0:00:41]}  Rd6 {[%clk 0:00:16]} 43. a4 {[%clk 0:00:39]}  Re6 {[%clk 0:00:16]} 44. Rb6 {[%clk 0:00:35]}  h5 {[%clk 0:00:16]} 45. a5 {[%clk 0:00:34]}  Re5 {[%clk 0:00:16]} 46. a6 {[%clk 0:00:33]}  Ra5 {[%clk 0:00:13]} 47. Rxc6 {[%clk 0:00:33]}  g5 {[%clk 0:00:13]} 48. h3 {[%clk 0:00:32]}  Ra4 {[%clk 0:00:12]} 49. g4 {[%clk 0:00:31]}  hxg4+ {[%clk 0:00:12]} 50. hxg4 {[%clk 0:00:32]}  Be7 {[%clk 0:00:10]} 51. a7 {[%clk 0:00:30]}  Bd6 {[%clk 0:00:05]} 52. Rxd6 {[%clk 0:00:30]} 1-0


[Site "https://www.chess.com"]

[Event "Late Titled Tuesday Blitz February 8 2022"]
[White "Vovk, Orest"]
[Black "Novikova, Galina"]
[WhiteFideId "14113490"]
[BlackFideId "4157095"]
[WhiteElo "2203"]
[BlackElo "1863"]
[Result "1-0"]
[Round "03"]
[TimeControl "180+1"]
[Date "2022.02.09"]
[WhiteClock "0:01:32"]
[BlackClock "0:00:09"]

1. h4 {[%clk 0:03:00]}  d5 {[%clk 0:02:57]} 2. h5 {[%clk 0:03:01]}  h6 {[%clk 0:02:57]} 3. e4 {[%clk 0:03:00]}  dxe4 {[%clk 0:02:55]} 4. Nc3 {[%clk 0:03:00]}  Nf6 {[%clk 0:02:54]} 5. Qe2 {[%clk 0:03:00]}  Nc6 {[%clk 0:02:50]} 6. Nxe4 {[%clk 0:03:00]}  Bf5 {[%clk 0:02:30]} 7. Nxf6+ {[%clk 0:02:54]}  gxf6 {[%clk 0:02:31]} 8. c3 {[%clk 0:02:54]}  Qd7 {[%clk 0:02:29]} 9. d4 {[%clk 0:02:53]}  O-O-O {[%clk 0:02:28]} 10. Be3 {[%clk 0:02:51]}  e5 {[%clk 0:02:22]} 11. dxe5 {[%clk 0:02:48]}  Nxe5 {[%clk 0:02:11]} 12. Rd1 {[%clk 0:02:28]}  Nd3+ {[%clk 0:01:56]} 13. Rxd3 {[%clk 0:02:28]}  Bxd3 {[%clk 0:01:57]} 14. Qxd3 {[%clk 0:02:28]}  Qxd3 {[%clk 0:01:58]} 15. Bxd3 {[%clk 0:02:29]}  Rxd3 {[%clk 0:01:58]} 16. Nf3 {[%clk 0:02:29]}  Rd8 {[%clk 0:01:39]} 17. Rh4 {[%clk 0:02:27]}  Bd6 {[%clk 0:01:36]} 18. Ra4 {[%clk 0:02:17]}  a6 {[%clk 0:01:34]} 19. Ra5 {[%clk 0:02:18]}  Rde8 {[%clk 0:01:00]} 20. Kf1 {[%clk 0:02:13]}  Be5 {[%clk 0:00:58]} 21. Nh4 {[%clk 0:02:01]}  Rd8 {[%clk 0:00:27]} 22. Ke2 {[%clk 0:01:56]}  Rhe8 {[%clk 0:00:23]} 23. g3 {[%clk 0:01:56]}  Rd6 {[%clk 0:00:18]} 24. Nf5 {[%clk 0:01:53]}  Rde6 {[%clk 0:00:19]} 25. Ng7 {[%clk 0:01:50]}  R6e7 {[%clk 0:00:16]} 26. Nxe8 {[%clk 0:01:49]}  Rxe8 {[%clk 0:00:17]} 27. Ra4 {[%clk 0:01:47]}  f5 {[%clk 0:00:16]} 28. Kf3 {[%clk 0:01:46]}  Kd7 {[%clk 0:00:16]} 29. Bxh6 {[%clk 0:01:44]}  Rh8 {[%clk 0:00:15]} 30. Bf4 {[%clk 0:01:43]}  Bxf4 {[%clk 0:00:13]} 31. Kxf4 {[%clk 0:01:42]}  Rxh5 {[%clk 0:00:13]} 32. Ra5 {[%clk 0:01:42]}  Ke6 {[%clk 0:00:13]} 33. Re5+ {[%clk 0:01:41]}  Kf6 {[%clk 0:00:13]} 34. Re8 {[%clk 0:01:41]}  Rh2 {[%clk 0:00:12]} 35. Kf3 {[%clk 0:01:41]}  Rh1 {[%clk 0:00:12]} 36. Rc8 {[%clk 0:01:40]}  Rb1 {[%clk 0:00:11]} 37. b3 {[%clk 0:01:40]}  b5 {[%clk 0:00:08]} 38. Rxc7 {[%clk 0:01:40]}  Rb2 {[%clk 0:00:09]} 39. Rc6+ {[%clk 0:01:39]}  Ke5 {[%clk 0:00:10]} 40. Rxa6 {[%clk 0:01:39]}  Rc2 {[%clk 0:00:09]} 41. Ra5 {[%clk 0:01:38]}  Rxc3+ {[%clk 0:00:09]} 42. Kg2 {[%clk 0:01:38]}  Ke4 {[%clk 0:00:09]} 43. Rxb5 {[%clk 0:01:37]}  Rc2 {[%clk 0:00:09]} 44. a4 {[%clk 0:01:37]}  Kd3 {[%clk 0:00:09]} 45. Rxf5 {[%clk 0:01:36]}  Kc3 {[%clk 0:00:08]} 46. Rxf7 {[%clk 0:01:34]}  Kxb3 {[%clk 0:00:08]} 47. Rd7 {[%clk 0:01:35]}  Kxa4 {[%clk 0:00:07]} 48. g4 {[%clk 0:01:35]}  Kb5 {[%clk 0:00:08]} 49. Kg3 {[%clk 0:01:33]}  Kc6 {[%clk 0:00:09]} 50. Rd8 {[%clk 0:01:32]}  Rc1 {[%clk 0:00:09]} 51. Rc8+ {[%clk 0:01:32]} 1-0


[Site "https://www.chess.com"]

[Event "Late Titled Tuesday Blitz February 8 2022"]
[White "Vusatiuk, Vladimir"]
[Black "Martirosyan, Haik M."]
[WhiteFideId "14118610"]
[BlackFideId "13306553"]
[WhiteElo "2535"]
[BlackElo "2957"]
[Result "0-1"]
[Round "03"]
[TimeControl "180+1"]
[Date "2022.02.09"]
[WhiteClock "0:00:02"]
[BlackClock "0:01:13"]

1. d4 {[%clk 0:02:58]}  Nf6 {[%clk 0:02:58]} 2. c4 {[%clk 0:02:56]}  e6 {[%clk 0:02:59]} 3. Nc3 {[%clk 0:02:56]}  Bb4 {[%clk 0:02:59]} 4. e3 {[%clk 0:02:55]}  O-O {[%clk 0:02:58]} 5. Nf3 {[%clk 0:02:54]}  b6 {[%clk 0:02:57]} 6. Bd3 {[%clk 0:02:36]}  Bb7 {[%clk 0:02:57]} 7. O-O {[%clk 0:02:35]}  Bxc3 {[%clk 0:02:55]} 8. bxc3 {[%clk 0:02:36]}  Ne4 {[%clk 0:02:56]} 9. Qc2 {[%clk 0:02:23]}  f5 {[%clk 0:02:55]} 10. Nd2 {[%clk 0:02:07]}  Nxd2 {[%clk 0:02:55]} 11. Bxd2 {[%clk 0:02:07]}  d6 {[%clk 0:02:55]} 12. f3 {[%clk 0:02:01]}  Nd7 {[%clk 0:02:53]} 13. a4 {[%clk 0:01:34]}  a5 {[%clk 0:02:53]} 14. Rab1 {[%clk 0:01:33]}  Rb8 {[%clk 0:02:40]} 15. Rfe1 {[%clk 0:01:30]}  Qh4 {[%clk 0:02:39]} 16. e4 {[%clk 0:01:08]}  fxe4 {[%clk 0:02:39]} 17. Bxe4 {[%clk 0:01:07]}  e5 {[%clk 0:02:28]} 18. Bxb7 {[%clk 0:00:58]}  Rxb7 {[%clk 0:02:29]} 19. c5 {[%clk 0:00:56]}  dxc5 {[%clk 0:02:26]} 20. dxe5 {[%clk 0:00:54]}  Rbb8 {[%clk 0:02:26]} 21. Qe4 {[%clk 0:00:47]}  Qxe4 {[%clk 0:02:21]} 22. Rxe4 {[%clk 0:00:48]}  Rfe8 {[%clk 0:02:21]} 23. Rbe1 {[%clk 0:00:41]}  Rbd8 {[%clk 0:02:21]} 24. Bg5 {[%clk 0:00:40]}  Rc8 {[%clk 0:02:19]} 25. f4 {[%clk 0:00:35]}  c6 {[%clk 0:02:03]} 26. Rd1 {[%clk 0:00:31]}  Nf8 {[%clk 0:02:01]} 27. f5 {[%clk 0:00:27]}  h6 {[%clk 0:01:59]} 28. Bh4 {[%clk 0:00:27]}  b5 {[%clk 0:02:00]} 29. e6 {[%clk 0:00:23]}  Rb8 {[%clk 0:01:39]} 30. e7 {[%clk 0:00:12]}  Nh7 {[%clk 0:01:38]} 31. Rd8 {[%clk 0:00:12]}  Kf7 {[%clk 0:01:33]} 32. Bf2 {[%clk 0:00:04]}  Nf6 {[%clk 0:01:24]} 33. Rxb8 {[%clk 0:00:02]}  Rxb8 {[%clk 0:01:25]} 34. Re6 {[%clk 0:00:03]}  b4 {[%clk 0:01:21]} 35. Bxc5 {[%clk 0:00:02]}  bxc3 {[%clk 0:01:21]} 36. Rxc6 {[%clk 0:00:01]}  c2 {[%clk 0:01:15]} 37. Be3 {[%clk 0:00:01]}  Rb1+ {[%clk 0:01:13]} 38. Kf2 {[%clk 0:00:02]}  Ng4+ {[%clk 0:01:13]} 39. Kf3 {[%clk 0:00:02]}  Nxe3 {[%clk 0:01:14]} 40. Rc8 {[%clk 0:00:03]}  Kxe7 {[%clk 0:01:14]} 41. Rc7+ {[%clk 0:00:02]}  Kd6 {[%clk 0:01:14]} 42. Kxe3 {[%clk 0:00:02]}  Kxc7 {[%clk 0:01:13]} 43. f6 {[%clk 0:00:02]}  c1=Q+ {[%clk 0:01:14]} 44. Ke4 {[%clk 0:00:02]}  Rb4+ {[%clk 0:01:13]} 0-1


[Site "https://www.chess.com"]

[Event "Late Titled Tuesday Blitz February 8 2022"]
[White "Weetik, Vjacheslav"]
[Black "Reprintsev, Alexander"]
[WhiteFideId "4153472"]
[BlackFideId "14100541"]
[WhiteElo "2690"]
[BlackElo "2483"]
[Result "1-0"]
[Round "03"]
[TimeControl "180+1"]
[Date "2022.02.09"]
[WhiteClock "0:00:08"]
[BlackClock "0:00:11"]

1. e4 {[%clk 0:02:58]}  d5 {[%clk 0:02:59]} 2. exd5 {[%clk 0:02:57]}  Qxd5 {[%clk 0:02:59]} 3. Nc3 {[%clk 0:02:58]}  Qa5 {[%clk 0:02:59]} 4. d4 {[%clk 0:02:58]}  Nf6 {[%clk 0:02:59]} 5. Nf3 {[%clk 0:02:58]}  Nc6 {[%clk 0:02:59]} 6. Bd2 {[%clk 0:02:56]}  a6 {[%clk 0:02:58]} 7. Bc4 {[%clk 0:02:49]}  Qh5 {[%clk 0:02:57]} 8. Ne5 {[%clk 0:02:21]}  Bg4 {[%clk 0:02:57]} 9. Nxg4 {[%clk 0:02:02]}  Qxg4 {[%clk 0:02:55]} 10. Qxg4 {[%clk 0:02:00]}  Nxg4 {[%clk 0:02:56]} 11. d5 {[%clk 0:01:29]}  Nd4 {[%clk 0:02:42]} 12. Bd3 {[%clk 0:01:07]}  Ne5 {[%clk 0:02:37]} 13. Be4 {[%clk 0:01:01]}  f5 {[%clk 0:02:36]} 14. Be3 {[%clk 0:01:01]}  fxe4 {[%clk 0:02:15]} 15. Bxd4 {[%clk 0:01:01]}  Nc4 {[%clk 0:02:15]} 16. Nxe4 {[%clk 0:00:54]}  O-O-O {[%clk 0:02:15]} 17. O-O-O {[%clk 0:00:26]}  Rxd5 {[%clk 0:02:14]} 18. b3 {[%clk 0:00:24]}  Nd6 {[%clk 0:02:12]} 19. c4 {[%clk 0:00:20]}  Ra5 {[%clk 0:01:58]} 20. Rhe1 {[%clk 0:00:20]}  Rxa2 {[%clk 0:01:53]} 21. Ng5 {[%clk 0:00:20]}  b6 {[%clk 0:01:32]} 22. Ne6 {[%clk 0:00:19]}  h5 {[%clk 0:01:24]} 23. Kb1 {[%clk 0:00:13]}  Ra5 {[%clk 0:01:24]} 24. Nxf8 {[%clk 0:00:13]}  Rxf8 {[%clk 0:01:24]} 25. Rxe7 {[%clk 0:00:13]}  Nf5 {[%clk 0:01:20]} 26. Re2 {[%clk 0:00:11]}  Nxd4 {[%clk 0:01:18]} 27. Rxd4 {[%clk 0:00:12]}  Raf5 {[%clk 0:01:18]} 28. f3 {[%clk 0:00:13]}  g5 {[%clk 0:01:16]} 29. Re7 {[%clk 0:00:12]}  Kb7 {[%clk 0:01:05]} 30. Rdd7 {[%clk 0:00:11]}  Rc5 {[%clk 0:01:05]} 31. Rg7 {[%clk 0:00:11]}  a5 {[%clk 0:01:04]} 32. Kb2 {[%clk 0:00:07]}  Rf4 {[%clk 0:01:04]} 33. Rd5 {[%clk 0:00:04]}  Rxd5 {[%clk 0:01:01]} 34. cxd5 {[%clk 0:00:05]}  g4 {[%clk 0:00:39]} 35. fxg4 {[%clk 0:00:06]}  Rf2+ {[%clk 0:00:37]} 36. Kc3 {[%clk 0:00:05]}  Rxg2 {[%clk 0:00:38]} 37. d6 {[%clk 0:00:05]}  Kc8 {[%clk 0:00:14]} 38. Rxc7+ {[%clk 0:00:05]}  Kd8 {[%clk 0:00:14]} 39. gxh5 {[%clk 0:00:05]}  Rxh2 {[%clk 0:00:14]} 40. Rh7 {[%clk 0:00:06]}  Rh4 {[%clk 0:00:13]} 41. h6 {[%clk 0:00:05]}  b5 {[%clk 0:00:13]} 42. Kd3 {[%clk 0:00:05]}  a4 {[%clk 0:00:13]} 43. bxa4 {[%clk 0:00:06]}  bxa4 {[%clk 0:00:13]} 44. Kc3 {[%clk 0:00:06]}  a3 {[%clk 0:00:13]} 45. Kb3 {[%clk 0:00:07]}  Rh3+ {[%clk 0:00:13]} 46. Ka2 {[%clk 0:00:07]}  Kc8 {[%clk 0:00:13]} 47. Rc7+ {[%clk 0:00:07]}  Kb8 {[%clk 0:00:13]} 48. h7 {[%clk 0:00:08]}  Rh6 {[%clk 0:00:11]} 49. Rg7 {[%clk 0:00:08]} 1-0


[Site "https://www.chess.com"]